[Event "30e Open International de Saint Affrique"]
[Site "Saint Affrique, France"]
[Date "2024.07.23"]
[Round "5.1"]
[White "Ciarletta, Ulysse"]
[Black "Flear, Glenn"]
[Result "1/2-1/2"]
[TimeControl "1h30/40 + 30min + sec/mv"]
[BlackTitle "GM"]
[WhiteElo "2139"]
[BlackElo "2390"]

1. d4 {[%clk 01:30:51]} {[%emt 00:00:08]} d5 {[%clk 01:30:36]} {[%emt
00:00:25]} 2. c4 {[%clk 01:31:11]} {[%emt 00:00:10]} e6 {[%clk 01:30:56]}
{[%emt 00:00:10]} 3. Nf3 {[%clk 01:31:24]} {[%emt 00:00:17]} Nf6 {[%clk
01:30:56]} {[%emt 00:00:29]} 4. g3 {[%clk 01:31:38]} {[%emt 00:00:17]} c6
{[%clk 01:30:24]} {[%emt 00:01:03]} 5. Bg2 {[%clk 01:31:49]} {[%emt 00:00:19]}
Nbd7 {[%clk 01:29:02]} {[%emt 00:01:51]} 6. O-O {[%clk 01:31:49]} {[%emt
00:00:30]} dxc4 {[%clk 01:25:30]} {[%emt 00:04:02]} 7. a4 {[%clk 01:31:44]}
{[%emt 00:00:36]} a5 {[%clk 01:25:28]} {[%emt 00:00:31]} 8. Qc2 {[%clk
01:32:03]} {[%emt 00:00:12]} b6 {[%clk 01:25:24]} {[%emt 00:00:35]} 9. Nbd2
{[%clk 01:29:17]} {[%emt 00:03:15]} Be7 {[%clk 01:18:07]} {[%emt 00:07:47]} 10.
Nxc4 {[%clk 01:27:37]} {[%emt 00:02:10]} Nd5 {[%clk 01:16:16]} {[%emt
00:02:21]} 11. e4 {[%clk 01:13:23]} {[%emt 00:14:45]} Nb4 {[%clk 01:16:12]}
{[%emt 00:00:33]} 12. Qc3 {[%clk 01:12:50]} {[%emt 00:01:03]} O-O {[%clk
01:14:26]} {[%emt 00:02:16]} 13. Rd1 {[%clk 01:06:38]} {[%emt 00:06:43]} b5
{[%clk 01:09:16]} {[%emt 00:05:40]} 14. Nce5 {[%clk 01:04:45]} {[%emt
00:02:23]} Bb7 {[%clk 01:07:09]} {[%emt 00:02:37]} 15. Nxd7 {[%clk 01:01:49]}
{[%emt 00:03:26]} Qxd7 {[%clk 01:05:05]} {[%emt 00:02:34]} 16. Ne5 {[%clk
01:02:04]} {[%emt 00:00:15]} Qc8 {[%clk 01:00:02]} {[%emt 00:05:33]} 17. Be3
{[%clk 00:58:56]} {[%emt 00:03:38]} Rd8 {[%clk 00:58:36]} {[%emt 00:01:56]} 18.
Qb3 {[%clk 00:49:45]} {[%emt 00:09:41]} Bd6 {[%clk 00:50:31]} {[%emt 00:08:35]}
19. Nd3 {[%clk 00:42:53]} {[%emt 00:07:23]} Ba6 {[%clk 00:39:52]} {[%emt
00:11:09]} 20. Nxb4 {[%clk 00:41:28]} {[%emt 00:01:54]} Bxb4 {[%clk 00:35:40]}
{[%emt 00:04:42]} 21. Rdc1 {[%clk 00:36:14]} {[%emt 00:05:44]} bxa4 {[%clk
00:33:09]} {[%emt 00:03:02]} 22. Qxa4 {[%clk 00:35:30]} {[%emt 00:01:14]} Bb5
{[%clk 00:33:32]} {[%emt 00:00:07]} 23. Qd1 {[%clk 00:33:17]} {[%emt 00:02:43]}
e5 {[%clk 00:25:26]} {[%emt 00:08:36]} 24. d5 {[%clk 00:32:41]} {[%emt
00:01:07]} Qd7 {[%clk 00:23:23]} {[%emt 00:02:33]} 25. Qh5 {[%clk 00:27:00]}
{[%emt 00:06:11]} Re8 {[%clk 00:19:37]} {[%emt 00:04:15]} 26. Bc5 {[%clk
00:24:23]} {[%emt 00:03:07]} g6 {[%clk 00:17:00]} {[%emt 00:03:07]} 27. Qg5
{[%clk 00:22:24]} {[%emt 00:02:29]} Rac8 {[%clk 00:15:57]} {[%emt 00:01:33]} 28.
Bxb4 {[%clk 00:20:14]} {[%emt 00:02:39]} axb4 {[%clk 00:15:58]} {[%emt
00:00:29]} 29. Rc5 {[%clk 00:19:53]} {[%emt 00:00:51]} Rb8 {[%clk 00:06:27]}
{[%emt 00:10:02]} 30. Rac1 {[%clk 00:18:33]} {[%emt 00:01:49]} cxd5 {[%clk
00:06:15]} {[%emt 00:00:43]} 31. Rc7 {[%clk 00:15:47]} {[%emt 00:03:16]} Qd6
{[%clk 00:05:56]} {[%emt 00:00:48]} 32. exd5 {[%clk 00:15:04]} {[%emt
00:01:14]} Bd7 {[%clk 00:04:34]} {[%emt 00:01:52]} 33. Qe3 {[%clk 00:14:13]}
{[%emt 00:01:20]} Rbc8 {[%clk 00:04:16]} {[%emt 00:00:49]} 34. Qc5 {[%clk
00:13:42]} {[%emt 00:01:00]} Rxc7 {[%clk 00:02:46]} {[%emt 00:02:01]} 35. Qxc7
{[%clk 00:14:01]} {[%emt 00:00:11]} Qxc7 {[%clk 00:02:53]} {[%emt 00:00:23]} 36.
Rxc7 {[%clk 00:14:20]} {[%emt 00:00:11]} Ba4 {[%clk 00:02:35]} {[%emt
00:00:48]} 37. Rb7 {[%clk 00:12:05]} {[%emt 00:02:44]} Bc2 {[%clk 00:01:59]}
{[%emt 00:01:06]} 38. Rxb4 {[%clk 00:11:43]} {[%emt 00:00:53]} Rd8 {[%clk
00:01:15]} {[%emt 00:01:14]} 39. Rb5 {[%clk 00:09:31]} {[%emt 00:02:41]} e4
{[%clk 00:01:11]} {[%emt 00:00:34]} 40. Rc5 {[%clk 00:09:18]} {[%emt 00:00:43]}
Bd3 {[%clk 00:01:34]} {[%emt 00:00:08]} 41. Bh3 {[%clk 00:27:08]} {[%emt
00:12:40]} Kg7 {[%clk 00:26:53]} {[%emt 00:05:11]} 42. Bc8 {[%clk 00:26:29]}
{[%emt 00:01:09]} Rd6 {[%clk 00:26:53]} {[%emt 00:00:29]} 43. h4 {[%clk
00:23:20]} {[%emt 00:03:40]} Rb6 {[%clk 00:22:28]} {[%emt 00:04:55]} 44. Rc7
{[%clk 00:18:58]} {[%emt 00:04:52]} Rxb2 {[%clk 00:19:38]} {[%emt 00:03:21]} 45.
Be6 {[%clk 00:19:12]} {[%emt 00:00:16]} Kf6 {[%clk 00:19:46]} {[%emt 00:00:21]}
46. Rxf7+ {[%clk 00:16:25]} {[%emt 00:03:17]} Ke5 {[%clk 00:20:10]} {[%emt
00:00:06]} 47. h5 {[%clk 00:12:23]} {[%emt 00:04:33]} Be2 {[%clk 00:19:02]}
{[%emt 00:01:38]} 48. hxg6 {[%clk 00:08:46]} {[%emt 00:04:06]} hxg6 {[%clk
00:19:25]} {[%emt 00:00:07]} 49. Bh3 {[%clk 00:08:22]} {[%emt 00:00:54]} Bf3
{[%clk 00:14:17]} {[%emt 00:05:38]} 50. Bg2 {[%clk 00:08:12]} {[%emt 00:00:40]}
Bxg2 {[%clk 00:13:47]} {[%emt 00:01:00]} 51. Kxg2 {[%clk 00:08:34]} {[%emt
00:00:08]} Kxd5 {[%clk 00:14:09]} {[%emt 00:00:07]} 52. Kh3 {[%clk 00:08:26]}
{[%emt 00:00:38]} Re2 {[%clk 00:08:59]} {[%emt 00:05:40]} 53. Kg4 {[%clk
00:06:38]} {[%emt 00:02:18]} e3 {[%clk 00:09:15]} {[%emt 00:00:14]} 54. fxe3
{[%clk 00:05:42]} {[%emt 00:01:26]} Rxe3 {[%clk 00:09:39]} {[%emt 00:00:06]} 55.
Rf6 {[%clk 00:05:11]} {[%emt 00:01:00]} g5 {[%clk 00:09:00]} {[%emt 00:01:09]}
56. Rf8 {[%clk 00:03:52]} {[%emt 00:01:49]} Kd6 {[%clk 00:08:34]} {[%emt
00:00:55]} 57. Rf5 {[%clk 00:03:07]} {[%emt 00:01:16]} Ke6 {[%clk 00:08:35]}
{[%emt 00:00:29]} 58. Rxg5 {[%clk 00:03:16]} {[%emt 00:00:21]} Kf7 {[%clk
00:08:52]} {[%emt 00:00:12]} 59. Ra5 {[%emt 00:00:54]} Re6 {[%clk 00:08:58]} 60.
Kf4 {[%emt 00:00:33]} Rb6 {[%clk 00:09:13]} 61. g4 {[%clk 00:03:32]} {[%emt
00:00:26]} Kg7 {[%clk 00:09:37]} {[%emt 00:00:06]} 62. Kf5 {[%clk 00:03:39]}
{[%emt 00:00:21]} Rb7 {[%clk 00:10:02]} {[%emt 00:00:08]} 1/2-1/2

[Event "30e Open International de Saint Affrique"]
[Site "Saint Affrique, France"]
[Date "2024.07.23"]
[Round "5.2"]
[White "Toulzac, Pierre-Yves"]
[Black "Degraeve, Jean-Marc"]
[Result "0-1"]
[TimeControl "1h30/40 + 30min + sec/mv"]
[WhiteTitle "FM"]
[BlackTitle "GM"]
[WhiteElo "2088"]
[BlackElo "2480"]

1. Nf3 {[%clk 01:30:52]} {[%emt 00:00:07]} Nf6 {[%clk 01:30:10]} {[%emt
00:00:51]} 2. g3 {[%clk 01:31:02]} {[%emt 00:00:20]} g6 {[%clk 01:30:31]}
{[%emt 00:00:08]} 3. Bg2 {[%clk 01:31:25]} {[%emt 00:00:06]} Bg7 {[%clk
01:30:56]} {[%emt 00:00:05]} 4. O-O {[%clk 01:31:42]} {[%emt 00:00:12]} O-O
{[%clk 01:31:21]} {[%emt 00:00:05]} 5. d3 {[%clk 01:32:02]} {[%emt 00:00:11]}
d6 {[%clk 01:29:38]} {[%emt 00:02:13]} 6. e4 {[%clk 01:31:00]} {[%emt
00:01:31]} c5 {[%clk 01:29:44]} {[%emt 00:00:24]} 7. Re1 {[%clk 01:29:17]}
{[%emt 00:02:13]} Nc6 {[%clk 01:30:04]} {[%emt 00:00:10]} 8. c3 {[%clk
01:28:59]} {[%emt 00:00:48]} Bg4 {[%clk 01:25:21]} {[%emt 00:05:13]} 9. Nbd2
{[%clk 01:24:59]} {[%emt 00:04:31]} Qc8 {[%clk 01:21:13]} {[%emt 00:04:37]} 10.
Nc4 {[%clk 01:17:17]} {[%emt 00:08:12]} b5 {[%clk 01:14:06]} {[%emt 00:07:37]}
11. Ne3 {[%clk 01:15:57]} {[%emt 00:01:50]} Bxf3 {[%clk 01:14:30]} {[%emt
00:00:07]} 12. Bxf3 {[%clk 01:10:30]} {[%emt 00:05:56]} Nd7 {[%clk 01:14:43]}
{[%emt 00:00:17]} 13. Nc2 {[%clk 00:53:48]} {[%emt 00:17:12]} Rb8 {[%clk
01:14:51]} {[%emt 00:00:22]} 14. d4 {[%clk 00:53:50]} {[%emt 00:00:27]} b4
{[%clk 01:15:00]} {[%emt 00:00:21]} 15. Be3 {[%clk 00:51:51]} {[%emt 00:02:29]}
bxc3 {[%clk 01:15:18]} {[%emt 00:00:13]} 16. bxc3 {[%clk 00:52:15]} {[%emt
00:00:06]} Qc7 {[%clk 01:15:38]} {[%emt 00:00:10]} 17. Qd2 {[%clk 00:50:52]}
{[%emt 00:01:53]} Rb2 {[%clk 01:07:17]} {[%emt 00:08:51]} 18. Qc1 {[%clk
00:47:58]} {[%emt 00:03:23]} Rfb8 {[%clk 01:06:44]} {[%emt 00:01:03]} 19. Nb4
{[%clk 00:45:40]} {[%emt 00:02:48]} cxd4 {[%clk 01:03:04]} {[%emt 00:04:10]} 20.
Qxb2 {[%clk 00:29:34]} {[%emt 00:16:36]} dxe3 {[%clk 01:03:29]} {[%emt
00:00:05]} 21. e5 {[%clk 00:23:35]} {[%emt 00:06:29]} Nxb4 {[%clk 01:02:06]}
{[%emt 00:01:53]} 22. cxb4 {[%clk 00:23:28]} {[%emt 00:00:36]} Nxe5 {[%clk
01:02:20]} {[%emt 00:00:17]} 0-1

[Event "30e Open International de Saint Affrique"]
[Site "Saint Affrique, France"]
[Date "2024.07.23"]
[Round "5.3"]
[White "Le Roux, Jean-Pierre"]
[Black "Garde, Guillaume"]
[Result "1-0"]
[TimeControl "1h30/40 + 30min + sec/mv"]
[WhiteTitle "GM"]
[WhiteElo "2480"]
[BlackElo "2082"]

1. Nf3 {[%clk 01:29:08]} {[%emt 00:01:52]} d5 {[%clk 01:30:45]} {[%emt
00:00:15]} 2. g3 {[%clk 01:28:48]} {[%emt 00:00:50]} g6 {[%clk 01:31:10]}
{[%emt 00:00:05]} 3. Bg2 {[%clk 01:26:18]} {[%emt 00:03:00]} Bg7 {[%clk
01:31:28]} {[%emt 00:00:12]} 4. d4 {[%clk 01:26:07]} {[%emt 00:00:41]} Nf6
{[%clk 01:30:53]} {[%emt 00:01:05]} 5. O-O {[%clk 01:26:28]} {[%emt 00:00:09]}
c6 {[%clk 01:27:53]} {[%emt 00:03:30]} 6. Nbd2 {[%clk 01:23:18]} {[%emt
00:03:40]} O-O {[%clk 01:26:18]} {[%emt 00:02:05]} 7. c3 {[%clk 01:23:38]}
{[%emt 00:00:10]} Nbd7 {[%clk 01:22:53]} {[%emt 00:03:55]} 8. Re1 {[%clk
01:19:05]} {[%emt 00:05:03]} Re8 {[%clk 01:19:21]} {[%emt 00:04:03]} 9. e4
{[%clk 01:19:24]} {[%emt 00:00:11]} dxe4 {[%clk 01:16:51]} {[%emt 00:03:01]} 10.
Nxe4 {[%clk 01:16:34]} {[%emt 00:03:19]} Nxe4 {[%clk 01:05:03]} {[%emt
00:12:17]} 11. Rxe4 {[%clk 01:17:00]} {[%emt 00:00:04]} Nf6 {[%clk 01:02:50]}
{[%emt 00:02:43]} 12. Re1 {[%clk 01:17:01]} {[%emt 00:00:28]} Bf5 {[%clk
01:01:09]} {[%emt 00:02:11]} 13. Ne5 {[%clk 01:04:54]} {[%emt 00:12:37]} Nd7
{[%clk 00:47:15]} {[%emt 00:14:25]} 14. Nc4 {[%clk 00:52:50]} {[%emt 00:12:34]}
Nb6 {[%clk 00:41:09]} {[%emt 00:06:36]} 15. Ne3 {[%clk 00:52:32]} {[%emt
00:00:48]} Be6 {[%clk 00:39:35]} {[%emt 00:02:04]} 16. Ng4 {[%clk 00:36:21]}
{[%emt 00:16:41]} Bd5 {[%clk 00:31:23]} {[%emt 00:08:42]} 17. Bh3 {[%clk
00:34:04]} {[%emt 00:02:46]} Be6 {[%clk 00:27:31]} {[%emt 00:04:22]} 18. Rxe6
{[%clk 00:30:08]} {[%emt 00:04:26]} fxe6 {[%clk 00:27:50]} {[%emt 00:00:12]} 19.
Qe2 {[%clk 00:22:24]} {[%emt 00:08:15]} Rf8 {[%clk 00:21:41]} {[%emt 00:06:39]}
20. Nh6+ {[%clk 00:22:41]} {[%emt 00:00:12]} Kh8 {[%clk 00:21:32]} {[%emt
00:00:40]} 21. Bxe6 {[%clk 00:23:05]} {[%emt 00:00:06]} Qe8 {[%clk 00:21:14]}
{[%emt 00:00:47]} 22. Bg5 {[%clk 00:19:01]} {[%emt 00:04:33]} Nd5 {[%clk
00:15:19]} {[%emt 00:06:26]} 23. Re1 {[%clk 00:17:46]} {[%emt 00:01:46]} Nc7
{[%clk 00:14:30]} {[%emt 00:01:19]} 24. Bb3 {[%clk 00:17:07]} {[%emt 00:01:09]}
e6 {[%clk 00:14:13]} {[%emt 00:00:47]} 25. h4 {[%clk 00:17:18]} {[%emt
00:00:19]} a5 {[%clk 00:12:31]} {[%emt 00:02:12]} 26. a3 {[%clk 00:15:24]}
{[%emt 00:02:24]} a4 {[%clk 00:11:39]} {[%emt 00:01:22]} 27. Ba2 {[%clk
00:15:18]} {[%emt 00:00:36]} Ra5 {[%clk 00:11:34]} {[%emt 00:00:34]} 28. Ng4
{[%clk 00:11:54]} {[%emt 00:03:54]} Raf5 {[%clk 00:10:44]} {[%emt 00:01:20]} 29.
Bb1 {[%clk 00:10:24]} {[%emt 00:02:00]} Ra5 {[%clk 00:10:32]} {[%emt 00:00:42]}
30. Ne5 {[%clk 00:07:04]} {[%emt 00:03:49]} Nd5 {[%clk 00:05:41]} {[%emt
00:05:21]} 31. h5 {[%clk 00:05:00]} {[%emt 00:02:34]} gxh5 {[%clk 00:03:08]}
{[%emt 00:03:03]} 32. Qe4 {[%clk 00:04:44]} {[%emt 00:00:46]} Rf5 {[%clk
00:03:19]} {[%emt 00:00:19]} 33. Nc4 {[%clk 00:04:35]} {[%emt 00:00:39]} Qg8
{[%clk 00:01:30]} {[%emt 00:02:19]} 34. Nxa5 {[%clk 00:03:17]} {[%emt
00:01:49]} Rxg5 {[%clk 00:01:55]} {[%emt 00:00:05]} 35. Nxb7 {[%clk 00:02:29]}
{[%emt 00:01:18]} Nf6 {[%clk 00:01:16]} {[%emt 00:01:09]} 36. Qxe6 {[%clk
00:01:53]} {[%emt 00:01:06]} Qxe6 {[%clk 00:00:35]} {[%emt 00:01:10]} 37. Rxe6
{[%clk 00:02:19]} {[%emt 00:00:05]} Rb5 {[%clk 00:00:59]} {[%emt 00:00:06]} 38.
Nc5 {[%clk 00:02:10]} {[%emt 00:00:39]} Rxb2 {[%clk 00:01:24]} {[%emt
00:00:05]} 39. Bf5 {[%clk 00:02:13]} {[%emt 00:00:26]} Kg8 {[%clk 00:00:44]}
{[%emt 00:01:11]} 40. Rxc6 {[%clk 00:02:16]} {[%emt 00:00:27]} Ng4 {[%clk
00:00:47]} {[%emt 00:00:26]} 41. Nxa4 {[%clk 00:01:21]} {[%emt 00:01:25]} Rd2
{[%clk 00:01:08]} {[%emt 00:00:09]} 42. Bxg4 {[%clk 00:01:36]} {[%emt
00:00:15]} hxg4 {[%clk 00:01:34]} {[%emt 00:00:04]} 43. Nc5 {[%clk 00:01:18]}
{[%emt 00:00:48]} Ra2 {[%clk 00:01:33]} {[%emt 00:00:31]} 44. a4 {[%clk
00:00:51]} {[%emt 00:00:58]} Ra3 {[%clk 00:01:59]} {[%emt 00:00:04]} 45. Rc8+
{[%clk 00:28:11]} {[%emt 00:03:09]} Kf7 {[%clk 00:32:21]} {[%emt 00:00:07]} 46.
Rc7+ {[%clk 00:25:14]} {[%emt 00:03:28]} Kg6 {[%clk 00:32:41]} {[%emt
00:00:10]} 47. Nd3 {[%clk 00:24:40]} {[%emt 00:01:04]} Bf8 {[%clk 00:29:42]}
{[%emt 00:03:29]} 48. Nf4+ {[%clk 00:18:46]} {[%emt 00:06:23]} Kf6 {[%clk
00:29:34]} {[%emt 00:00:38]} 49. Rxh7 {[%clk 00:18:48]} {[%emt 00:00:29]} Rxa4
{[%clk 00:29:58]} {[%emt 00:00:06]} 50. Nd5+ {[%clk 00:17:43]} {[%emt
00:01:34]} Ke6 {[%clk 00:30:06]} {[%emt 00:00:22]} 51. Ne3 {[%clk 00:17:30]}
{[%emt 00:00:43]} Ra2 {[%clk 00:30:08]} {[%emt 00:00:28]} 52. Rc7 {[%clk
00:16:16]} {[%emt 00:01:44]} Bd6 {[%clk 00:30:00]} {[%emt 00:00:38]} 53. Rg7
{[%clk 00:16:04]} {[%emt 00:00:42]} Ra3 {[%clk 00:29:50]} {[%emt 00:00:40]} 54.
Rg6+ {[%clk 00:16:13]} {[%emt 00:00:21]} Ke7 {[%clk 00:30:17]} {[%emt
00:00:03]} 55. Nf5+ {[%clk 00:16:35]} {[%emt 00:00:08]} 1-0

[Event "30e Open International de Saint Affrique"]
[Site "Saint Affrique, France"]
[Date "2024.07.23"]
[Round "5.4"]
[White "Gerard, Nicolas"]
[Black "Travadon, Loic"]
[Result "0-1"]
[TimeControl "1h30/40 + 30min + sec/mv"]
[BlackTitle "IM"]
[WhiteElo "2074"]
[BlackElo "2458"]

1. d4 {[%clk 01:30:57]} {[%emt 00:00:02]} Nf6 {[%clk 01:30:54]} {[%emt
00:00:06]} 2. c4 {[%clk 01:31:20]} {[%emt 00:00:07]} e6 {[%clk 01:31:21]}
{[%emt 00:00:04]} 3. Nf3 {[%clk 01:31:17]} {[%emt 00:00:34]} c5 {[%clk
01:31:38]} {[%emt 00:00:12]} 4. d5 {[%clk 01:31:27]} {[%emt 00:00:20]} exd5
{[%clk 01:31:47]} {[%emt 00:00:21]} 5. cxd5 {[%clk 01:31:51]} {[%emt 00:00:06]}
g6 {[%clk 01:32:05]} {[%emt 00:00:11]} 6. Nc3 {[%clk 01:30:48]} {[%emt
00:01:34]} Bg7 {[%clk 01:32:28]} {[%emt 00:00:06]} 7. Bf4 {[%clk 01:29:44]}
{[%emt 00:01:35]} O-O {[%clk 01:32:49]} {[%emt 00:00:09]} 8. e3 {[%clk
01:27:08]} {[%emt 00:03:06]} d6 {[%clk 01:32:40]} {[%emt 00:00:38]} 9. Be2
{[%clk 01:25:33]} {[%emt 00:02:05]} Na6 {[%clk 01:19:33]} {[%emt 00:13:38]} 10.
Nd2 {[%clk 01:09:09]} {[%emt 00:16:55]} Nc7 {[%clk 01:17:15]} {[%emt 00:02:47]}
11. e4 {[%clk 01:02:28]} {[%emt 00:07:11]} b5 {[%clk 01:16:28]} {[%emt
00:01:17]} 12. a4 {[%clk 00:53:08]} {[%emt 00:09:50]} b4 {[%clk 01:16:29]}
{[%emt 00:00:28]} 13. Nb5 {[%clk 00:48:06]} {[%emt 00:05:32]} Nce8 {[%clk
01:15:26]} {[%emt 00:01:32]} 14. Nc4 {[%clk 00:45:43]} {[%emt 00:02:54]} Nxe4
{[%clk 01:15:39]} {[%emt 00:00:17]} 15. Bd3 {[%clk 00:39:17]} {[%emt 00:06:56]}
a6 {[%clk 01:10:20]} {[%emt 00:05:48]} 16. Bxe4 {[%clk 00:38:51]} {[%emt
00:00:56]} axb5 {[%clk 01:10:44]} {[%emt 00:00:05]} 17. Nd2 {[%clk 00:37:03]}
{[%emt 00:02:18]} bxa4 {[%clk 01:09:55]} {[%emt 00:01:19]} 18. Rxa4 {[%clk
00:37:14]} {[%emt 00:00:20]} Rxa4 {[%clk 01:10:15]} {[%emt 00:00:10]} 19. Qxa4
{[%clk 00:37:41]} {[%emt 00:00:04]} f5 {[%clk 01:10:01]} {[%emt 00:00:43]} 20.
Bf3 {[%clk 00:37:14]} {[%emt 00:00:57]} g5 {[%clk 01:10:22]} {[%emt 00:00:08]}
0-1

[Event "30e Open International de Saint Affrique"]
[Site "Saint Affrique, France"]
[Date "2024.07.23"]
[Round "5.5"]
[White "Buscara, Sevan"]
[Black "Canonge, Lionel"]
[Result "1-0"]
[TimeControl "1h30/40 + 30min + sec/mv"]
[WhiteTitle "IM"]
[WhiteElo "2187"]
[BlackElo "1972"]

1. Nf3 {[%clk 01:30:50]} {[%emt 00:00:09]} Nf6 {[%clk 01:30:43]} {[%emt
00:00:18]} 2. c4 {[%clk 01:30:12]} {[%emt 00:01:08]} d6 {[%clk 01:29:38]}
{[%emt 00:01:35]} 3. Nc3 {[%clk 01:22:37]} {[%emt 00:08:04]} g6 {[%clk
01:29:31]} {[%emt 00:00:37]} 4. d4 {[%clk 01:21:52]} {[%emt 00:01:15]} Bg7
{[%clk 01:29:10]} {[%emt 00:00:51]} 5. g3 {[%clk 01:21:17]} {[%emt 00:01:05]}
O-O {[%clk 01:27:44]} {[%emt 00:01:56]} 6. Bg2 {[%clk 01:21:41]} {[%emt
00:00:05]} Nbd7 {[%clk 01:22:29]} {[%emt 00:05:45]} 7. O-O {[%clk 01:21:30]}
{[%emt 00:00:41]} c6 {[%clk 01:22:46]} {[%emt 00:00:13]} 8. b3 {[%clk
01:21:41]} {[%emt 00:00:20]} e5 {[%clk 01:11:48]} {[%emt 00:11:28]} 9. Qc2
{[%clk 01:10:57]} {[%emt 00:11:14]} Qe7 {[%clk 01:06:28]} {[%emt 00:05:50]} 10.
e3 {[%clk 01:09:24]} {[%emt 00:02:03]} Rd8 {[%clk 00:49:55]} {[%emt 00:17:03]}
11. Ba3 {[%clk 01:08:55]} {[%emt 00:00:59]} Ne8 {[%clk 00:40:54]} {[%emt
00:09:31]} 12. Rad1 {[%clk 01:08:00]} {[%emt 00:01:24]} f5 {[%clk 00:40:48]}
{[%emt 00:00:36]} 13. e4 {[%clk 01:07:41]} {[%emt 00:00:49]} Qf6 {[%clk
00:26:36]} {[%emt 00:14:42]} 14. dxe5 {[%clk 01:04:38]} {[%emt 00:03:33]} Nxe5
{[%clk 00:25:56]} {[%emt 00:01:10]} 15. Nxe5 {[%clk 01:02:37]} {[%emt
00:02:31]} Qxe5 {[%clk 00:25:58]} {[%emt 00:00:28]} 16. Bb2 {[%clk 00:58:10]}
{[%emt 00:04:57]} f4 {[%clk 00:24:54]} {[%emt 00:01:33]} 17. gxf4 {[%clk
00:54:28]} {[%emt 00:04:13]} Qxf4 {[%clk 00:24:30]} {[%emt 00:00:54]} 18. Ne2
{[%clk 00:54:22]} {[%emt 00:00:36]} Qg5 {[%clk 00:22:54]} {[%emt 00:02:06]} 19.
f4 {[%clk 00:52:25]} {[%emt 00:02:27]} Qh4 {[%clk 00:22:28]} {[%emt 00:00:56]}
20. f5 {[%clk 00:48:58]} {[%emt 00:03:57]} Nf6 {[%clk 00:22:05]} {[%emt
00:00:53]} 21. Rf4 {[%clk 00:44:05]} {[%emt 00:05:23]} Qh5 {[%clk 00:12:54]}
{[%emt 00:09:41]} 22. Bf3 {[%clk 00:33:03]} {[%emt 00:11:32]} Qg5+ {[%clk
00:10:31]} {[%emt 00:02:53]} 23. Kh1 {[%clk 00:32:52]} {[%emt 00:00:41]} gxf5
{[%clk 00:02:44]} {[%emt 00:08:18]} 24. exf5 {[%clk 00:31:46]} {[%emt
00:01:36]} Rd7 {[%clk 00:00:59]} {[%emt 00:02:14]} 25. Rg1 {[%clk 00:27:05]}
{[%emt 00:05:11]} Qh6 {[%clk 00:01:23]} {[%emt 00:00:06]} 26. Qd1 {[%clk
00:25:48]} {[%emt 00:01:46]} Re7 {[%clk 00:00:31]} {[%emt 00:01:24]} 27. Qxd6
{[%emt 00:02:52]} 1-0

[ePGN "0.1;DGT LiveChess/2.2.6"]